fUSD/lending_fUSD_20240412
["ID","MTS","AMOUNT","RATE_DAILY","PERIOD"]
[322235399,1712907053683,-500.0,0.00027944,2]
[322235400,1712907053692,-169.60473799,0.00027944,2]
[322235401,1712907053701,-500.0,0.00027944,2]
[322235402,1712907053709,-500.0,0.00027944,2]
[322235403,1712907053718,-500.0,0.00027944,2]
[322235404,1712907053727,-269.02542023,0.00027944,2]
[322235405,1712907053737,-500.0,0.00027944,2]
[322235406,1712907053746,-281.98093537,0.00027944,2]
[322235407,1712907053755,-500.0,0.00027944,2]
[322235408,1712907053764,-500.0,0.00027944,2]
[322235409,1712907053773,-500.0,0.00027944,2]
[322235410,1712907053782,-271.8647142,0.00027944,2]
[322235411,1712907053791,-500.0,0.00027944,2]
[322235412,1712907053800,-500.0,0.00027944,2]
[322235413,1712907053809,-500.0,0.00027944,2]
[322235414,1712907053819,-518.46669376,0.00027944,2]
[322235415,1712907053828,-205.3248476,0.00027944,2]
[322235416,1712907053837,-616.4180905,0.00027944,2]
[322235417,1712907053850,-500.0,0.00027944,2]
[322235418,1712907053858,-256.21744464,0.00027944,2]
[322235419,1712907053867,-500.0,0.00027944,2]
[322235420,1712907053876,-500.0,0.00027944,2]
[322235421,1712907053886,-500.0,0.00027944,2]
[322235422,1712907053895,-500.0,0.00027944,2]
[322235423,1712907053904,-556.49973588,0.00027944,2]
[322235424,1712907053914,-500.0,0.00027944,2]
[322235425,1712907053924,-500.0,0.00027944,2]
[322235426,1712907053934,-500.0,0.00027944,2]
[322235427,1712907053943,-500.0,0.00027944,2]
[322235428,1712907053952,-500.0,0.00027944,2]
[322235429,1712907053961,-500.0,0.00027944,2]
[322235430,1712907053970,-500.0,0.00027944,2]
[322235431,1712907053979,-500.0,0.00027944,2]
[322235432,1712907053988,-409.44019035,0.00027944,2]
[322235433,1712907053997,-473.53000131,0.00027944,2]
[322235434,1712907054007,-157.91,0.00027944,2]
[322235435,1712907054016,-437.82356723,0.00027944,2]
[322235436,1712907054025,-500.0,0.00027944,2]
[322235437,1712907054034,-500.0,0.00027944,2]
[322235438,1712907054043,-500.0,0.00027944,2]
[322235439,1712907054052,-500.0,0.00027944,2]
[322235440,1712907054062,-269.9,0.00027944,2]
[322235441,1712907054071,-500.0,0.00027944,2]
[322235442,1712907054080,-500.0,0.00027944,2]
[322235443,1712907054089,-195.79136211,0.00027944,2]
[322235444,1712907054102,-1047.08863789,0.00027944,2]
[322235445,1712907054111,-500.0,0.00027944,2]
[322235446,1712907054121,-500.0,0.00027944,2]
[322235447,1712907054131,-539.06,0.00027944,2]
[322235448,1712907054141,-1058.95,0.00027944,2]
[322235449,1712907054151,-500.0,0.00027944,2]
[322235450,1712907054160,-555.77,0.00027944,2]
[322235451,1712907054172,-500.0,0.00027944,2]
[322235452,1712907054181,-523.09,0.00027944,2]
[322235453,1712907054190,-639.75,0.00027944,2]
[322235454,1712907054200,-1351.6,0.00027944,2]
[322235455,1712907054209,-500.0,0.00027944,2]
[322235456,1712907054218,-896.72,0.00027944,2]
[322235457,1712907054227,-500.0,0.00027944,2]
[322235458,1712907054235,-500.0,0.00027944,2]
[322235459,1712907054244,-500.0,0.00027944,2]
[322235460,1712907054253,-1259.42,0.00027944,2]
[322235461,1712907054262,-688.0,0.00027944,2]
[322235462,1712907054271,-2778.13,0.00027944,2]
[322235463,1712907054280,-500.0,0.00027944,2]
[322235464,1712907054289,-834.37,0.00027944,2]
[322235465,1712907054298,-500.0,0.00027944,2]
[322235466,1712907054307,-500.0,0.00027944,2]
[322235467,1712907054316,-500.0,0.00027944,2]
[322235468,1712907054325,-506.05685866,0.00027944,2]
[322235469,1712907054334,-500.0,0.00027944,2]
[322235470,1712907054343,-506.9053882,0.00027944,2]
[322235471,1712907054352,-500.0,0.00027944,2]
[322235472,1712907054360,-500.0,0.00027944,2]
[322235473,1712907054369,-507.95893286,0.00027944,2]
[322235474,1712907054378,-500.0,0.00027944,2]
[322235475,1712907054387,-504.82540812,0.00027944,2]
[322235476,1712907054397,-509.02196486,0.00027944,2]
[322235477,1712907054406,-509.50450026,0.00027944,2]
[322235478,1712907054415,-500.0,0.00027944,2]
[322235479,1712907054424,-500.0,0.00027944,2]
[322235480,1712907054433,-500.0,0.00027945,2]
[322235481,1712907054442,-347.93,0.00027945,2]
[322235482,1712907054451,-258.93,0.00027945,2]
[322235483,1712907054461,-500.0,0.00027945,2]
[322235484,1712907054470,-500.0,0.00027945,2]
[322235485,1712907054479,-500.0,0.00027945,2]
[322235486,1712907054489,-500.0,0.00027945,2]
[322235487,1712907054499,-500.0,0.00027945,2]
[322235488,1712907054509,-500.0,0.00027945,2]
[322235489,1712907054519,-500.0,0.00027945,2]
[322235490,1712907054528,-500.0,0.00027945,2]
[322235491,1712907054539,-500.0,0.00027945,2]
[322235492,1712907054549,-500.0,0.00027945,2]
[322235493,1712907054560,-500.0,0.00027945,2]
[322235494,1712907054569,-334.57,0.00027945,2]
[322235495,1712907054579,-500.0,0.00027945,2]
[322235496,1712907054590,-500.0,0.00027945,2]
[322235497,1712907054600,-500.0,0.00027945,2]
[322235498,1712907054609,-556.59,0.00027945,2]
[322235499,1712907054620,-500.0,0.00027945,2]
[322235500,1712907054631,-500.0,0.00027945,2]
[322235501,1712907054640,-500.0,0.00027945,2]
[322235502,1712907054650,-500.0,0.00027945,2]
[322235503,1712907054659,-500.0,0.00027945,2]
[322235504,1712907054668,-500.0,0.00027945,2]
[322235505,1712907054676,-161.135618,0.00027945,7]
[322235506,1712907054685,-330.31366249,0.00027945,2]
[322235507,1712907054694,-500.0,0.00027945,2]
[322235508,1712907054704,-425.57198811,0.00027945,2]
[322235509,1712907054714,-563.93,0.00027945,2]
[322235510,1712907054723,-161.135618,0.00027945,7]
[322235511,1712907054733,-275.17982995,0.00027945,2]
[322235512,1712907054743,-500.0,0.00027945,2]
[322235513,1712907054753,-408.66533078,0.00027945,2]
[322235514,1712907054762,-500.0,0.00027945,2]
[322235515,1712907054772,-1289.1,0.00027945,2]
[322235516,1712907054781,-500.0,0.00027945,2]
[322235517,1712907054790,-500.0,0.00027945,2]
[322235518,1712907054799,-500.0,0.00027945,2]
[322235519,1712907054809,-500.0,0.00027945,2]
[322235520,1712907054818,-500.0,0.00027945,2]
[322235521,1712907054827,-500.0,0.00027945,2]
[322235522,1712907054837,-514.63,0.00027945,2]
[322235523,1712907054850,-500.0,0.00027945,2]
[322235524,1712907054861,-500.0,0.00027945,2]
[322235525,1712907054872,-500.0,0.00027945,2]
[322235526,1712907054882,-500.0,0.00027945,2]
[322235527,1712907054893,-636.11013834,0.00027945,2]
[322235528,1712907054903,-500.0,0.00027945,2]
[322235529,1712907054912,-500.0,0.00027945,2]
[322235530,1712907054924,-500.0,0.00027945,2]
[322235531,1712907054934,-542.82,0.00027945,2]
[322235532,1712907054945,-500.0,0.00027945,2]
[322235533,1712907054954,-500.0,0.00027945,2]
[322235534,1712907054964,-500.0,0.00027945,2]
[322235535,1712907054973,-150.0,0.00027945,2]
[322235536,1712907054982,-500.0,0.00027945,2]
[322235537,1712907054992,-500.0,0.00027945,2]
[322235538,1712907055001,-605.86958006,0.00027945,2]
[322235539,1712907055011,-500.0,0.00027945,2]
[322235540,1712907055021,-777.39,0.00027945,2]
[322235541,1712907055030,-500.0,0.00027945,2]
[322235542,1712907055039,-500.0,0.00027945,2]
[322235543,1712907055048,-500.0,0.00027945,2]
[322235544,1712907055057,-500.0,0.00027945,2]
[322235545,1712907055066,-500.0,0.00027945,2]
[322235546,1712907055076,-500.0,0.00027945,2]
[322235547,1712907055085,-500.0,0.00027945,2]
[322235548,1712907055095,-297.44498604,0.00027945,2]
[322235549,1712907055104,-500.0,0.00027945,2]
[322235550,1712907055115,-500.0,0.00027945,2]
[322235551,1712907055124,-516.14,0.00027945,2]
[322235552,1712907055134,-500.0,0.00027945,2]
[322235553,1712907055144,-500.0,0.00027945,2]
[322235554,1712907055155,-500.0,0.00027945,2]
[322235555,1712907055164,-606.34,0.00027945,2]
[322235556,1712907055174,-1066.45,0.00027945,2]
[322235557,1712907055184,-500.0,0.00027945,2]
[322235558,1712907055194,-586.39,0.00027945,2]
[322235559,1712907055203,-500.0,0.00027945,2]
[322235560,1712907055213,-500.0,0.00027945,2]
[322235561,1712907055223,-500.0,0.00027945,2]
[322235562,1712907055234,-500.0,0.00027945,2]
[322235563,1712907055244,-500.0,0.00027945,2]
[322235564,1712907055254,-500.0,0.00027945,2]
[322235565,1712907055264,-463.19487045,0.00027945,2]
[322235566,1712907055273,-2942.27,0.00027945,2]
[322235567,1712907055283,-1998.99,0.00027945,2]
[322235568,1712907055292,-493.1,0.00027945,2]
[322235569,1712907055303,-914.51,0.00027945,2]
[322235570,1712907055312,-1869.17,0.00027945,2]
[322235571,1712907055323,-500.0,0.00027945,2]
[322235572,1712907055333,-2824.67,0.00027945,2]
[322235573,1712907055344,-500.0,0.00027945,2]
[322235574,1712907055354,-500.0,0.00027945,2]
[322235575,1712907055363,-1029.64,0.00027945,2]
[322235576,1712907055373,-500.0,0.00027945,2]
[322235577,1712907055383,-500.0,0.00027945,2]
[322235578,1712907055392,-1798.54,0.00027945,2]
[322235579,1712907055402,-324.57872204,0.00027945,2]
[322235580,1712907055412,-1478.97,0.00027945,2]
[322235581,1712907055421,-768.09,0.00027945,2]
[322235582,1712907055430,-500.0,0.00027945,2]
[322235583,1712907055439,-500.0,0.00027945,2]
[322235584,1712907055450,-500.0,0.00027945,2]
[322235585,1712907055460,-845.66,0.00027945,2]
[322235586,1712907055469,-1175.82,0.00027945,2]
[322235587,1712907055478,-500.0,0.00027945,2]
[322235588,1712907055488,-500.0,0.00027945,2]
[322235589,1712907055497,-525.0,0.00027945,2]
[322235590,1712907055506,-2578.53,0.00027945,2]
[322235591,1712907055516,-500.0,0.00027945,2]
[322235592,1712907055525,-500.0,0.00027945,2]
[322235593,1712907055534,-991.97,0.00027945,2]
[322235594,1712907055544,-500.0,0.00027945,2]
[322235595,1712907055553,-653.35,0.00027945,2]
[322235596,1712907055562,-839.31,0.00027945,2]
[322235597,1712907055573,-500.0,0.00027945,2]
[322235598,1712907055583,-500.0,0.00027945,2]
[322235599,1712907055592,-500.0,0.00027945,2]
[322235600,1712907055602,-610.98,0.00027945,2]
[322235601,1712907055611,-736.67,0.00027945,2]
[322235602,1712907055620,-500.0,0.00027945,2]
[322235603,1712907055630,-513.6,0.00027945,2]
[322235604,1712907055639,-2205.8,0.00027945,2]
[322235605,1712907055649,-6189.95,0.00027945,2]
[322235606,1712907055658,-500.0,0.00027945,2]
[322235607,1712907055668,-530.78,0.00027945,2]
[322235608,1712907055677,-2074.61,0.00027945,2]
[322235609,1712907055687,-500.0,0.00027945,2]
[322235610,1712907055696,-500.0,0.00027945,2]
[322235611,1712907055706,-930.85,0.00027945,2]
[322235612,1712907055718,-500.0,0.00027945,2]
[322235613,1712907055727,-1822.94,0.00027945,2]
[322235614,1712907055739,-500.0,0.00027945,2]
[322235615,1712907055749,-628.67,0.00027945,2]
[322235616,1712907055759,-984.09,0.00027945,2]
[322235617,1712907055769,-2195.86,0.00027945,2]
[322235618,1712907055779,-5551.45,0.00027945,2]
[322235619,1712907055788,-500.0,0.00027945,2]
[322235620,1712907055798,-500.0,0.00027945,2]
[322235621,1712907055808,-500.0,0.00027945,2]
[322235622,1712907055817,-500.0,0.00027945,2]
[322235623,1712907055827,-500.0,0.00027945,2]
[322235624,1712907055837,-699.92,0.00027945,2]
[322235625,1712907055850,-1110.9,0.00027945,2]
[322235626,1712907055860,-6296.45,0.00027945,2]
[322235627,1712907055869,-500.0,0.00027945,2]
[322235628,1712907055878,-2241.44,0.00027945,2]
[322235629,1712907055888,-500.0,0.00027945,2]
[322235630,1712907055899,-500.0,0.00027945,2]
[322235631,1712907055909,-318.27079567,0.00027945,2]
[322235632,1712907055933,-205.44106407,0.00027945,2]
[322235633,1712907055943,-500.0,0.00027945,2]
[322235634,1712907055952,-0.7794141,0.00027945,2]
[322235635,1712907055972,-809.9205859,0.00027945,2]
[322235636,1712907055981,-568.47,0.00027945,2]
[322235637,1712907055992,-500.0,0.00027945,2]
[322235638,1712907056001,-878.81,0.00027945,2]
[322235639,1712907056011,-1239.04,0.00027945,2]
[322235640,1712907056020,-1074.72,0.00027945,2]
[322235641,1712907056031,-884.3,0.00027945,2]
[322235642,1712907056041,-1070.89,0.00027945,2]
[322235643,1712907056051,-500.0,0.00027945,2]
[322235644,1712907056062,-500.0,0.00027945,2]
[322235645,1712907056071,-500.0,0.00027945,2]
[322235646,1712907056081,-500.0,0.00027945,2]
[322235647,1712907056090,-500.0,0.00027945,2]
[322235648,1712907056100,-1933.57,0.00027945,2]
[322235649,1712907056109,-500.0,0.00027945,2]
[322235650,1712907056119,-500.0,0.00027945,2]
[322235651,1712907056128,-2770.1,0.00027945,2]
[322235652,1712907056138,-2113.62,0.00027945,2]
[322235653,1712907056147,-500.0,0.00027945,2]
[322235654,1712907056157,-1689.87,0.00027945,2]
[322235655,1712907056166,-1956.28,0.00027945,2]
[322235656,1712907056175,-500.0,0.00027945,2]
[322235657,1712907056185,-1462.29,0.00027945,2]
[322235658,1712907056194,-500.0,0.00027945,2]
[322235659,1712907056203,-1818.66,0.00027945,2]
[322235660,1712907056213,-500.0,0.00027945,2]
[322235661,1712907056222,-2144.61,0.00027945,2]
[322235662,1712907056231,-500.0,0.00027945,2]
[322235663,1712907056242,-3337.08,0.00027945,2]
[322235664,1712907056252,-994.38,0.00027945,2]
[322235665,1712907056261,-500.0,0.00027945,2]
[322235666,1712907056272,-500.0,0.00027945,2]
[322235667,1712907056282,-965.94,0.00027945,2]
[322235668,1712907056291,-1270.71,0.00027945,2]
[322235669,1712907056301,-838.89,0.00027945,2]
[322235670,1712907056310,-8292.25,0.00027945,2]
[322235671,1712907056319,-500.0,0.00027945,2]
[322235672,1712907056329,-500.0,0.00027945,2]
[322235673,1712907056338,-1674.65,0.00027945,2]
[322235674,1712907056349,-566.16,0.00027945,2]
[322235675,1712907056361,-518.07,0.00027945,2]
[322235676,1712907056370,-500.0,0.00027945,2]
[322235677,1712907056380,-500.0,0.00027945,2]
[322235678,1712907056390,-1381.62344334,0.00027964,2]
[322235679,1712907056399,-154.0927865,0.00027979,2]
[322235680,1712907056409,-912.49441763,0.00027983,2]
[322235681,1712907056419,-1089.17,0.00027999,2]
[322235682,1712907056428,-912.49441763,0.00028032,2]
[322235683,1712907056438,-170.29863896,0.00028072,2]
[322235684,1712907056447,-912.49441763,0.00028081,2]
[322235685,1712907056458,-450.6016,0.00028105,2]
[322235686,1712907056468,-712.29,0.00028112,2]
[322235687,1712907056479,-500.0,0.00028112,2]
[322235688,1712907056489,-9940.7218,0.00028113,2]
[322235689,1712907056499,-3691.3413,0.00028113,2]
[322235690,1712907056509,-153.00377094,0.00028113,2]
[322235691,1712907056518,-310.77951114,0.00028113,2]
[322235692,1712907056527,-3131.80441642,0.00028113,2]
[322235693,1712907056536,-183.7301656,0.00028118,5]
[322235694,1712907056546,-287.3808632,0.00028119,14]
[322235695,1712907056555,-912.49441763,0.0002813,2]
[322235696,1712907056564,-150.73908605,0.00028161,2]
[322235697,1712907056573,-150.0,0.000282,2]
[322235698,1712907056582,-712.29,0.0002821,2]
[322235699,1712907056591,-712.29,0.0002821,2]
[322235700,1712907056600,-500.0,0.0002821,2]
[322235701,1712907056609,-500.0,0.0002821,2]
[322235702,1712907056619,-500.0,0.0002821,2]
[322235703,1712907056628,-735.99,0.0002821,2]
[322235704,1712907056638,-464.16256699,0.0002821,2]
[322235705,1712907056647,-500.0,0.0002821,2]
[322235706,1712907056657,-500.0,0.0002821,2]
[322235707,1712907056666,-500.0,0.0002821,2]
[322235708,1712907056675,-450.08145928,0.0002821,2]
[322235709,1712907056684,-500.0,0.0002821,2]
[322235710,1712907056694,-500.0,0.0002821,2]
[322235711,1712907056703,-500.0,0.0002821,2]
[322235712,1712907056713,-500.0,0.0002821,2]
[322235713,1712907056722,-500.0,0.0002821,2]
[322235714,1712907056731,-500.0,0.0002821,2]
[322235715,1712907056741,-500.0,0.0002821,2]
[322235716,1712907056750,-500.0,0.0002821,2]
[322235717,1712907056759,-500.0,0.0002821,2]
[322235718,1712907056769,-500.0,0.0002821,2]
[322235719,1712907056779,-500.0,0.0002821,2]
[322235720,1712907056788,-500.0,0.0002821,2]
[322235721,1712907056797,-1581.21,0.0002821,2]
[322235722,1712907056807,-5030.46,0.0002821,2]
[322235723,1712907056816,-959.54,0.0002821,2]
[322235724,1712907056826,-500.0,0.0002821,2]
[322235725,1712907056836,-1755.43,0.0002821,2]
[322235726,1712907056849,-16205.88,0.0002821,2]
[322235727,1712907056858,-500.0,0.0002821,2]
[322235728,1712907056869,-500.0,0.0002821,2]
[322235729,1712907056878,-500.0,0.0002821,2]
[322235730,1712907056888,-500.0,0.0002821,2]
[322235731,1712907056898,-500.0,0.0002821,2]
[322235732,1712907056907,-500.0,0.0002821,2]
[322235733,1712907056917,-204.7899158,0.00028211,2]
[322235734,1712907056929,-568081.92604192,0.00028211,7]
[322235735,1712907057093,-1087.29,0.00028211,7]
[322235736,1712907057465,-659.33153265,0.00024626,2]
[322235737,1712907057703,-7085.17398319,0.00024626,2]
[322235738,1712907057712,-218.7,0.00026706,2]
[322235739,1712907057722,-264.24684634,0.00027397,2]
[322235740,1712907057731,-500.0,0.00027397,2]
[322235741,1712907057742,-873.38,0.00027397,10]
[322235742,1712907057751,-567.95389229,0.0002767,2]
[322235743,1712907057761,-500.0,0.0002767,2]
[322235744,1712907057773,-500.0,0.0002767,2]
[322235745,1712907057782,-506.66494919,0.0002767,2]
[322235746,1712907057792,-10162.77871605,0.00028211,7]
[322235747,1712907057880,-790.12443875,0.00028211,7]
[322235748,1712907057895,-413.6125644,0.00028211,7]
[322235749,1712907057909,-426.60223212,0.00028211,7]
[322235750,1712907057928,-42445.14961549,0.00028211,7]
[322235778,1712907949220,25000.0,0.00034159,30]
[322235788,1712908001234,25000.0,0.00034159,30]
[322235789,1712908055902,25000.0,0.00034159,30]
[322235790,1712908117195,25000.0,0.00034159,30]
[322235799,1712908233126,-194.0760332,0.00020999,2]
[322235800,1712908233136,-350.0,0.00021,3]
[322235801,1712908233145,-885.31536345,0.00024399,2]
[322235802,1712908233154,-1067.75138298,0.000244,2]
[322235803,1712908233164,-992.04,0.00024433,2]
[322235804,1712908233174,-300.0,0.00024792,2]
[322235805,1712908233184,-217.7,0.00026008,2]
[322235806,1712908233195,-250.0,0.00026036,2]
[322235807,1712908233206,-237.78,0.00026066,2]
[322235808,1712908233215,-150.0,0.00026186,2]
[322235809,1712908233224,-251.95971022,0.00026187,2]
[322235810,1712908233237,-548.04028978,0.00026187,2]
[322235811,1712908233246,-499.99,0.00026187,2]
[322235812,1712908233257,-831.65,0.00026187,2]
[322235813,1712908233266,-5657.13644144,0.00026187,2]
[322235814,1712908233283,-873.58,0.00026187,2]
[322235815,1712908233295,-2657.2665935,0.00026187,2]
[322235816,1712908233308,-1036.14516754,0.00026187,2]
[322235817,1712908233320,-7876.43527198,0.00026187,2]
[322235818,1712908233332,-562.34159793,0.00026187,2]
[322235819,1712908233360,-1380.44026994,0.00026187,2]
[322235820,1712908233378,-3648.92465767,0.00026187,2]
[322235821,1712908233387,-150.99,0.00026187,2]
[322235822,1712908233397,-150.0,0.00026301,2]
[322235823,1712908233407,-173.09,0.00026317,2]
[322235824,1712908233417,-156.54,0.0002634,2]
[322235825,1712908233426,-3210.29,0.0002634,2]
[322235826,1712908233436,-200.0,0.0002654,2]
[322235827,1712908233445,-152.0,0.00026609,3]
[322235828,1712908233455,-992.04,0.00026697,2]
[322235829,1712908233465,-168.74,0.00026927,2]
[322235830,1712908233475,-16593.666,0.00027096,2]
[322235831,1712908233484,-153.32512064,0.00027175,2]
[322235832,1712908233494,-259.6064,0.00027197,2]
[322235833,1712908233503,-170.49438452,0.00027287,2]
[322235834,1712908233512,-177.59,0.00027295,2]
[322235835,1712908233523,-6798.8246,0.00027297,2]
[322235836,1712908233532,-1605.41243243,0.00027297,2]
[322235837,1712908233544,-987.65,0.00027297,2]
[322235838,1712908233560,-737.77704635,0.00027297,2]
[322235839,1712908233572,-4903.46776207,0.00027297,2]
[322235840,1712908233596,-15818.38405915,0.00027297,2]
[322235841,1712908233605,-7500.0,0.00027297,2]
[322235842,1712908233615,-3464.84778667,0.00027297,2]
[322235843,1712908233624,-163.459364,0.00027324,2]
[322235845,1712908233633,-153.33391257,0.0002738,2]
[322235850,1712908233902,-162.11,0.00027387,2]
[322235851,1712908233913,-1522.50432587,0.00027395,2]
[322235852,1712908233922,-1000.0,0.00027395,2]
[322235853,1712908233933,-1000.0,0.00027395,2]
[322235854,1712908233943,-1000.0,0.00027395,2]
[322235855,1712908233953,-1000.0,0.00027395,2]
[322235856,1712908233962,-1000.0,0.00027395,2]
[322235857,1712908233971,-1000.0,0.00027395,2]
[322235858,1712908233981,-1013.0,0.00027395,2]
[322235859,1712908233993,-541.15623235,0.00027396,2]
[322235860,1712908234003,-500.0,0.00027397,2]
[322235861,1712908234012,-500.0,0.00027397,2]
[322235862,1712908234021,-200.22959392,0.00027397,2]
[322235863,1712908234030,-495.33784227,0.00027397,2]
[322235864,1712908234039,-504.10502129,0.00027397,2]
[322235865,1712908234049,-500.0,0.00027397,2]
[322235866,1712908234058,-243.73136289,0.00027397,2]
[322235867,1712908234067,-500.0,0.00027397,2]
[322235868,1712908234076,-508.46977133,0.00027397,2]
[322235869,1712908234086,-505.57006707,0.00027397,2]
[322235870,1712908234095,-503.26905756,0.00027397,2]
[322235871,1712908234105,-503.95943784,0.00027397,2]
[322235872,1712908234114,-500.0,0.00027397,2]
[322235873,1712908234123,-500.0,0.00027397,2]
[322235874,1712908234133,-57.11117041,0.00027397,2]
[322235875,1712908234146,-313.94261921,0.00027397,2]
[322235876,1712908234157,-128.94621038,0.00027397,2]
[322235877,1712908234167,-132.00574709,0.00027397,2]
[322235878,1712908234179,-259.94301548,0.00027397,2]
[322235879,1712908234194,-108.05123743,0.00027397,2]
[322235880,1712908234203,-500.0,0.00027397,2]
[322235881,1712908234213,-467.90371447,0.00027397,2]
[322235884,1712908238356,-32.09628553,0.00027397,2]
[322235885,1712908238365,-500.0,0.00027397,2]
[322235886,1712908238375,-500.0,0.00027397,2]
[322235887,1712908238385,-500.0,0.00027397,2]
[322235888,1712908238394,-500.0,0.00027397,2]
[322235889,1712908238404,-500.0,0.00027397,2]
[322235890,1712908238413,-516.22966116,0.00027397,2]
[322235891,1712908238423,-513.31506488,0.00027397,2]
[322235892,1712908238432,-505.87026006,0.00027397,2]
[322235893,1712908238442,-500.0,0.00027397,2]
[322235894,1712908238451,-500.0,0.00027397,2]
[322235895,1712908238463,-500.0,0.00027397,2]
[322235896,1712908238472,-500.0,0.00027397,2]
[322235897,1712908238482,-511.4469513,0.00027397,2]
[322235898,1712908238492,-511.91116931,0.00027397,2]
[322235899,1712908238502,-500.0,0.00027397,2]
[322235900,1712908238512,-500.0,0.00027397,2]
[322235901,1712908238522,-510.46758599,0.00027397,2]
[322235902,1712908238531,-500.0,0.00027397,2]
[322235903,1712908238541,-500.0,0.00027397,2]
[322235904,1712908238550,-500.0,0.00027397,2]
[322235905,1712908238560,-500.0,0.00027397,2]
[322235906,1712908238570,-507.19235121,0.00027397,2]
[322235907,1712908238579,-508.92213293,0.00027397,2]
[322235908,1712908238590,-500.0,0.00027397,2]
[322235909,1712908238599,-500.0,0.00027397,2]
[322235910,1712908238608,-500.0,0.00027397,2]
[322235911,1712908238618,-518.66138031,0.00027397,2]
[322235912,1712908238628,-359.67311989,0.00027397,2]
[322235913,1712908238637,-491.53205644,0.00027397,2]
[322235914,1712908238647,-500.0,0.00027397,2]
[322235915,1712908238656,-500.0,0.00027397,2]
[322235916,1712908238666,-500.0,0.00027397,2]
[322235917,1712908238675,-321.91096829,0.00027397,2]
[322235918,1712908238685,-500.0,0.00027397,2]
[322235919,1712908238694,-500.0,0.00027397,2]
[322235920,1712908238703,-500.0,0.00027397,2]
[322235921,1712908238713,-500.0,0.00027397,2]
[322235922,1712908238722,-500.0,0.00027397,2]
[322235923,1712908238732,-500.0,0.00027397,2]
[322235924,1712908238742,-491.81424559,0.00027397,2]
[322235925,1712908238751,-500.0,0.00027397,2]
[322235926,1712908238761,-517.16450475,0.00027397,2]
[322235927,1712908238771,-500.0,0.00027397,2]
[322235928,1712908238780,-500.0,0.00027397,2]
[322235929,1712908238790,-632.25,0.00027397,2]
[322235930,1712908238799,-632.25,0.00027397,2]
[322235931,1712908238809,-632.25,0.00027397,2]
[322235932,1712908238819,-270.95247214,0.00027397,2]
[322235933,1712908238829,-500.0,0.00027397,2]
[322235934,1712908238838,-500.0,0.00027397,2]
[322235935,1712908238848,-500.0,0.00027397,2]
[322235936,1712908238857,-500.0,0.00027397,2]
[322235937,1712908238866,-500.0,0.00027397,2]
[322235938,1712908238876,-500.0,0.00027397,2]
[322235940,1712908238885,-500.0,0.00027397,2]
[322235942,1712908238894,-500.0,0.00027397,2]
[322235943,1712908238903,-500.0,0.00027397,2]
[322235944,1712908238913,-500.0,0.00027397,2]
[322235945,1712908238922,-500.0,0.00027397,2]
[322235946,1712908238931,-500.0,0.00027397,2]
[322235947,1712908238940,-193.31880429,0.00027397,2]
[322235948,1712908238949,-500.0,0.00027397,2]
[322235949,1712908238960,-500.0,0.00027397,2]
[322235951,1712908238970,-500.0,0.00027397,2]
[322235952,1712908238980,-589.06894382,0.00027397,2]